bitfinex-derivatives/quotes_ETHF0:USTF0_20250329
["timestamp","ask_amount","ask_price","bid_price","bid_amount"]
[1743248515482,3.2078,1841.2,1841.0,0.00815372]
[1743248515684,5.5507,1841.1,1840.6,1.08708]
[1743248515884,3.2078,1840.7,1840.6,1.08708]
[1743248516081,3.2078,1840.7,1840.5,8.26771587]
[1743248516385,3.2078,1840.7,1840.5,1.08714]
[1743248517277,11.2989,1840.6,1840.4,0.00815372]
[1743248517586,1.08733,1840.3,1839.9,17.6366]
[1743248517781,14.5067,1840.2,1840.0,1.08746]
[1743248517988,14.5067,1840.2,1839.9,4.884]
[1743248518187,14.5067,1840.2,1840.0,1.08746]
[1743248518386,11.2989,1840.2,1840.1,1.08741]
[1743248519397,14.5067,1840.2,1840.0,1.08745]
[1743248519699,14.5067,1840.2,1840.1,7.06989486]
[1743248519886,15.59406,1840.2,1840.1,7.06989486]
[1743248520085,15.59406,1840.2,1839.9,0.00815372]
[1743248520899,3.2078,1840.0,1839.7,0.10871337]
[1743248521196,3.2078,1839.8,1839.7,1.19631337]
[1743248521393,19.062,1839.9,1839.8,1.08759]
[1743248521593,3.2078,1840.2,1839.8,6.9642013]
[1743248521798,3.2078,1840.2,1840.1,1.08741]
[1743248522096,3.2078,1840.4,1840.2,1.08732]
[1743248522594,3.2078,1840.4,1840.2,1.08735]
[1743248523195,3.2078,1840.4,1840.1,16.4828]
[1743248523603,3.2078,1840.4,1840.2,19.83087447]
[1743248523802,3.2078,1840.4,1840.3,1.0873]
[1743248524303,3.2078,1840.4,1840.1,5.97137]
[1743248524505,3.2078,1840.2,1840.1,4.884]
[1743248524694,3.2078,1840.2,1840.1,5.97141]
[1743248525098,3.2078,1840.2,1840.1,17.60291]
[1743248525602,3.2078,1840.2,1840.1,5.97141]
[1743248526303,3.2078,1840.2,1840.1,4.884]
[1743248526597,1.08741,1840.1,1840.0,0.00815372]
[1743248526801,6.71565,1840.1,1839.7,0.10871337]
[1743248527105,3.2078,1839.8,1839.7,0.10871337]
[1743248527800,3.2078,1839.8,1839.6,1.09313584]
[1743248528006,3.2078,1839.8,1839.6,0.00543584]
[1743248528202,7.2833,1839.7,1839.6,0.00543584]
[1743248528902,0.00815372,1839.8,1839.7,1.08765]
[1743248529098,3.2078,1840.4,1840.3,1.08729]
[1743248529894,3.2078,1840.4,1839.9,55.105]
[1743248530105,3.2078,1840.1,1840.0,1.09560372]
[1743248530306,3.21595372,1840.3,1840.2,1.08736]
[1743248530695,3.21595372,1840.3,1840.1,1.08738]
[1743248530901,3.21595372,1840.3,1840.2,1.08736]
[1743248531904,3.21595372,1840.3,1840.1,1.08739]
[1743248532211,3.21595372,1840.3,1840.2,1.08736]
[1743248532398,3.21595372,1840.3,1840.1,8.21094853]
[1743248532603,3.21595372,1840.3,1840.1,1.08738]
[1743248532908,4.30327372,1840.3,1840.0,0.00815372]
[1743248533108,3.2078,1840.1,1840.0,0.00815372]
[1743248533306,4.29521,1840.1,1840.0,0.00815372]
[1743248533502,5.7078,1840.1,1839.5,1.08777]
[1743248533804,3.2078,1839.9,1839.6,7.19093691]
[1743248534005,4.29536,1839.9,1839.6,7.19093691]
[1743248534204,3.2078,1839.7,1839.5,1.08773]
[1743248535002,3.2078,1839.7,1839.5,1.08772]
[1743248535404,3.2078,1839.7,1839.4,11.51413584]
[1743248535606,3.2078,1839.7,1839.4,12.60192584]
[1743248535805,3.2078,1839.7,1839.5,1.08776]
[1743248536204,3.2078,1839.7,1839.4,1.09322584]
[1743248536410,8.5906,1839.7,1839.4,1.09322584]
[1743248536710,8.5906,1839.7,1839.6,1.08771]
[1743248537309,19.7767,1839.7,1839.6,1.08771]
[1743248537915,3.2078,1839.7,1839.6,8.30575304]
[1743248540012,11.1861,1839.9,1839.6,7.21804304]
[1743248540312,11.1861,1839.9,1839.8,1.08759]
[1743248540518,13.9526,1840.1,1840.0,1.08747]
[1743248540905,13.9526,1840.1,1839.8,8.04478866]
[1743248541110,3.2078,1839.9,1839.5,4.879]
[1743248541311,10.7448,1839.8,1839.7,1.08765]
[1743248541511,10.7448,1839.8,1839.7,8.17053232]
[1743248541715,10.7448,1839.8,1839.7,1.08765]
[1743248541914,3.2078,1840.0,1839.9,1.08753]
[1743248542115,3.2078,1840.0,1839.8,1.08756]
[1743248542312,11.3824,1839.9,1839.8,1.08759]
[1743248542609,3.2078,1840.0,1839.9,1.08753]
[1743248542821,3.2078,1840.0,1839.8,8.23436907]
[1743248543015,11.3824,1839.9,1839.8,1.08757]
[1743248543516,11.3824,1839.9,1839.6,4.29547]
[1743248543716,3.2078,1839.8,1839.6,5.96567]
[1743248543914,3.2078,1839.8,1839.5,1.08773]
[1743248543915,11.3824,1839.7,1839.5,1.08773]
[1743248544313,11.3824,1839.7,1839.5,8.30715535]
[1743248544811,11.3824,1839.7,1839.6,1.08771]
[1743248545005,11.3824,1839.7,1839.4,1.09322584]
[1743248545210,11.3824,1839.7,1839.5,1.08776]
[1743248545714,3.2078,1839.6,1839.4,0.00543584]
[1743248545910,11.05,1839.5,1839.2,0.94186]
[1743248546111,3.2078,1839.3,1839.2,0.94186]
[1743248546912,3.2078,1839.3,1839.2,2.02981]
[1743248549214,1.08821,1838.8,1838.2,3.2078]
[1743248549414,3.2078,1838.3,1837.9,1.72383528]
[1743248549618,11.7822,1838.2,1837.8,14.5889]
[1743248549817,11.7822,1838.2,1838.0,8.01948413]
[1743248550017,11.7822,1838.2,1837.9,8.02416405]
[1743248550219,11.7822,1838.2,1837.8,8.0848]
[1743248550414,11.7822,1838.2,1838.0,1.08863]
[1743248550908,11.7822,1838.2,1837.9,1.08868]
[1743248551620,11.7822,1838.2,1837.8,9.17355]
[1743248552020,11.7822,1838.2,1837.9,7.0496019]
[1743248552323,10.3938,1838.1,1837.6,7.0496019]
[1743248552514,3.2078,1838.3,1837.8,3.2078]
[1743248552716,11.1657,1838.4,1838.3,1.08848]
[1743248553114,11.1657,1838.4,1838.2,1.08852]
[1743248553426,11.1657,1838.4,1838.1,8.19239313]
[1743248553612,11.1657,1838.4,1838.1,8.19240313]
[1743248554115,11.1657,1838.4,1838.2,1.08851]
[1743248554312,11.1657,1838.4,1838.1,8.19240313]
[1743248554614,11.1657,1838.4,1838.3,1.08848]
[1743248556125,14.3735,1838.4,1838.1,1.08856]
[1743248556310,14.3735,1838.4,1838.1,1.08857]
[1743248556514,14.3735,1838.4,1838.1,8.0292384]
[1743248556810,14.3735,1838.4,1838.2,1.08852]
[1743248557413,14.3735,1838.4,1838.0,11.6326]
[1743248557622,14.3735,1838.4,1838.2,1.08854]
[1743248558719,14.3735,1838.4,1838.0,12.72124]
[1743248559024,14.3735,1838.4,1838.1,1.08859]
[1743248559222,14.3735,1838.4,1838.0,11.6326]
[1743248559419,14.3735,1838.4,1838.1,1.08857]
[1743248559725,15.46193,1838.4,1838.0,1.08863]
[1743248560421,14.3735,1838.4,1838.1,1.08856]
[1743248560718,14.3735,1838.4,1838.1,1.08855]
[1743248561225,14.3735,1838.4,1837.9,11.7706]
[1743248561423,14.3735,1838.4,1838.3,1.08848]
[1743248561919,14.3735,1838.4,1837.9,2.72176]
[1743248562122,14.3735,1838.4,1838.1,1.08855]
[1743248562323,14.3735,1838.4,1838.0,8.00938233]
[1743248562324,15.46192,1838.4,1838.0,8.00938233]
[1743248562523,3.2078,1838.2,1838.0,1.08862]
[1743248562726,11.4137,1838.1,1838.0,1.08862]
[1743248563620,11.4137,1838.1,1837.7,3.2078]
[1743248563926,11.4137,1838.1,1837.8,8.22936034]
[1743248564116,11.4137,1838.1,1837.9,1.08871]
[1743248564424,11.4137,1838.1,1837.9,1.0887]
[1743248564619,11.4137,1838.1,1837.7,13.9694]
[1743248564825,11.4137,1838.1,1838.0,8.08180672]
[1743248565225,11.4137,1838.1,1838.0,1.08866]
[1743248565915,3.2078,1838.4,1838.3,1.08848]
[1743248566220,11.7532,1838.5,1838.4,1.08842]
[1743248566424,3.2078,1839.2,1838.7,2.72061]
[1743248566618,3.2078,1839.6,1839.3,1.08786]
[1743248566924,3.2078,1839.4,1839.0,12.71993]
[1743248567116,3.2078,1839.1,1838.8,1.08815]
[1743248567317,3.2078,1838.9,1838.7,1.08823]
[1743248567514,3.2078,1838.9,1838.5,11.6319]
[1743248567723,11.7532,1838.8,1838.6,7.16996191]
[1743248567924,3.2078,1838.7,1838.6,0.00815372]
[1743248568119,10.3426,1838.7,1838.6,0.00815372]
[1743248568323,16.1238,1838.7,1838.6,0.00815372]
[1743248569029,7.1348,1838.7,1838.6,1.09645372]
[1743248569416,7.1348,1838.7,1838.6,0.00815372]
[1743248570026,10.3426,1838.7,1838.6,0.00815372]
[1743248571326,10.3426,1838.7,1838.6,1.09645372]
[1743248571526,10.3426,1838.7,1838.6,0.00815372]
[1743248571929,3.2078,1838.7,1838.6,1.09645372]
[1743248572126,11.7532,1838.8,1838.7,1.08824]
[1743248572320,11.7532,1838.8,1838.7,12.20424]
[1743248572520,11.7532,1838.8,1838.7,11.116]
[1743248572830,14.961,1838.8,1838.6,0.00815372]
[1743248573221,14.961,1838.8,1838.6,1.09645372]
[1743248573418,14.961,1838.8,1838.7,1.08824]
[1743248573823,14.961,1838.8,1838.6,12.21242372]
[1743248574425,14.961,1838.8,1838.7,1.08824]
[1743248575029,14.961,1838.8,1838.6,11.12415372]
[1743248575030,3.21595372,1839.0,1838.8,1.08817]
[1743248575229,3.21595372,1839.0,1838.9,1.08812]
[1743248575535,0.00815372,1839.0,1838.9,8.08243647]
[1743248575833,0.00815372,1839.0,1838.8,1.08814]
[1743248576037,3.21595372,1839.0,1838.6,12.21244372]
[1743248576331,11.4181,1838.9,1838.7,8.04466676]
[1743248576525,3.2078,1838.8,1838.6,12.21240372]
[1743248576730,11.4181,1838.7,1838.6,12.21240372]
[1743248577929,3.21595372,1839.0,1838.6,18.24486264]
[1743248578127,0.00815372,1839.0,1838.9,1.08812]
[1743248578534,0.00815372,1839.0,1838.9,8.14737599]
[1743248579531,0.00815372,1839.0,1838.9,13.01437599]
[1743248580435,3.2078,1839.4,1839.3,1.08789]
[1743248580638,3.2078,1839.4,1839.2,1.08793]
[1743248580838,10.8608,1839.3,1839.2,1.08793]
[1743248581033,10.8608,1839.3,1839.0,1.08806]
[1743248581335,3.2078,1839.1,1839.0,1.08806]
[1743248581542,3.2078,1839.1,1838.9,4.867]
[1743248581742,10.7961,1839.0,1838.6,0.00815372]
[1743248582034,10.7961,1839.0,1838.6,11.32685372]
[1743248582335,10.7961,1839.0,1838.9,1.08812]
[1743248583239,10.7961,1839.0,1838.9,8.03352598]
[1743248584233,10.7961,1839.0,1838.6,0.00815372]
[1743248584437,3.2078,1838.9,1838.6,0.00815372]
[1743248584634,23.1053,1838.8,1838.6,0.00815372]
[1743248586037,23.1053,1838.8,1838.7,1.08824]
[1743248587241,17.5952,1838.8,1838.7,12.90344]
[1743248587439,10.7515,1838.8,1838.7,12.90344]
[1743248587637,3.2078,1838.9,1838.7,18.87354149]
[1743248587945,14.5623,1839.1,1839.0,1.08806]
[1743248588539,14.5623,1839.1,1838.7,15.023]
[1743248588843,3.2078,1838.9,1838.8,8.31885152]
[1743248589045,3.2078,1838.9,1838.8,7.23069152]
[1743248589246,3.2078,1838.9,1838.6,1.09642372]
[1743248589445,11.3545,1838.8,1838.6,1.09642372]
[1743248590039,11.3545,1838.8,1838.6,0.00815372]
[1743248590239,11.3545,1838.8,1838.6,1.09643372]
[1743248590443,11.3545,1838.8,1838.6,0.00815372]
[1743248590747,3.2078,1838.7,1838.6,0.00815372]
[1743248592041,3.2078,1838.7,1838.6,1.09645372]
[1743248592248,11.3545,1838.8,1838.7,1.08824]
[1743248592546,12.1478,1839.2,1838.7,21.06497343]
[1743248592850,11.1777,1839.1,1839.0,1.08806]
[1743248593340,14.3855,1839.1,1838.7,5.9492]
[1743248593644,3.2078,1838.9,1838.6,12.23012372]
[1743248593949,3.2078,1838.9,1838.7,1.08824]
[1743248593950,11.8435,1838.8,1838.7,1.08824]
[1743248595439,11.8435,1838.8,1838.6,1.09643372]
[1743248595641,11.8435,1838.8,1838.6,1.09644372]
[1743248595947,11.8435,1838.8,1838.6,1.09641372]
[1743248596542,11.8435,1838.8,1838.6,0.00815372]
[1743248596739,3.2078,1838.7,1838.6,0.00815372]
[1743248596945,15.72,1838.7,1838.6,0.00815372]
[1743248597855,23.079,1838.7,1837.9,4.859]
[1743248598044,3.2078,1838.2,1838.1,1.0886]
[1743248598245,3.2078,1838.4,1837.9,18.44271]
[1743248598449,11.7949,1838.1,1838.0,1.08866]
[1743248598650,11.7949,1838.1,1838.0,19.10936053]
[1743248599153,11.7949,1838.1,1838.0,8.24736053]
[1743248599350,11.7949,1838.1,1837.9,5.95583372]
[1743248599655,11.7949,1838.1,1838.0,1.08866]
[1743248599855,11.7949,1838.1,1837.9,5.95582372]
[1743248600246,11.7949,1838.1,1838.0,1.08866]
[1743248600447,11.7949,1838.1,1837.9,4.86715372]
[1743248600641,11.7949,1838.1,1837.9,5.95584372]
[1743248600842,11.7949,1838.1,1838.0,1.08866]
[1743248601051,11.7949,1838.1,1838.0,8.04743044]
[1743248601248,11.7949,1838.1,1838.0,19.64423044]
[1743248601449,3.21595372,1838.2,1838.1,1.0886]
[1743248601649,14.92585372,1838.2,1838.1,1.0886]
[1743248601850,14.92585372,1838.2,1838.1,8.22319528]
[1743248602050,0.00815372,1838.2,1838.1,8.22319528]
[1743248602251,10.7848,1838.5,1838.1,7.13459528]
[1743248602453,3.2078,1838.4,1838.1,7.13459528]
[1743248602749,10.7848,1838.3,1838.2,12.89194]
[1743248603143,10.7848,1838.3,1838.2,19.85156154]
[1743248604054,10.7848,1838.3,1838.2,6.95962154]
[1743248604356,17.7396,1838.3,1838.0,1.08861]
[1743248604559,3.2078,1838.2,1837.9,5.95582372]
[1743248604750,10.7848,1838.1,1837.9,5.95582372]
[1743248604952,6.9548,1838.3,1838.2,1.08854]
[1743248605146,17.7396,1838.3,1838.1,1.08855]
[1743248605363,17.7396,1838.3,1838.2,1.08854]
[1743248605550,17.7396,1838.3,1838.2,8.03681771]
[1743248605849,10.7848,1838.3,1838.2,1.08854]
[1743248606251,10.7848,1838.3,1838.2,8.1569283]
[1743248608960,10.7848,1838.3,1838.0,11.8034]
[1743248609157,10.7848,1838.3,1838.1,1.08856]
[1743248609358,10.7848,1838.3,1838.1,8.28776681]
[1743248609558,10.7848,1838.3,1838.2,1.08854]
[1743248609958,10.7848,1838.3,1838.1,1.08856]
[1743248610555,10.7848,1838.3,1838.2,1.08854]
[1743248610949,10.7848,1838.3,1838.1,1.08857]
[1743248611160,10.7848,1838.3,1838.1,1.08859]
[1743248611650,10.7848,1838.3,1837.9,19.72465372]
[1743248611852,10.7848,1838.3,1838.2,1.08854]
[1743248612764,0.00815372,1838.4,1838.3,1.08848]
[1743248612963,0.00815372,1838.4,1838.3,16.97168]
[1743248613154,0.00271788,1838.4,1838.3,23.89640147]
[1743248616766,0.00271788,1838.4,1838.3,19.04240147]
[1743248616962,3.21051788,1838.4,1838.1,1.08855]
[1743248617261,10.8515,1838.3,1838.1,1.08857]
[1743248618060,10.8515,1838.3,1838.0,1.08862]
[1743248618262,10.8515,1838.3,1838.1,1.08859]
[1743248618461,10.8515,1838.3,1838.0,1.08861]
[1743248618664,3.2078,1838.2,1837.9,5.94884372]
[1743248618860,17.7754,1838.1,1837.9,4.86015372]
[1743248619063,17.7754,1838.1,1837.9,5.94884372]
[1743248619866,17.7754,1838.1,1837.9,0.00815372]
[1743248619867,3.2078,1838.0,1837.9,0.00815372]
[1743248620066,14.0559,1838.0,1837.9,0.00815372]
[1743248620765,14.0559,1838.0,1837.6,1.08886]
[1743248620964,3.2078,1837.7,1837.5,0.06147]
[1743248621158,10.7492,1837.6,1837.5,0.06147]
[1743248621663,17.7425,1837.6,1837.1,1.08914]
[1743248621862,3.2078,1837.4,1837.2,1.08913]
[1743248622158,9.1122,1837.6,1837.5,1.08895]
[1743248622362,5.9044,1837.6,1837.3,7.16247827]
[1743248622561,5.9044,1837.6,1837.3,1.08907]
[1743248623155,3.2078,1837.5,1837.2,0.00815372]
[1743248623567,10.7492,1837.4,1837.2,0.00815372]
[1743248624564,10.7492,1837.4,1837.3,1.08907]
[1743248625668,3.21595372,1837.7,1837.6,1.08889]
[1743248625861,12.6634,1838.1,1838.0,1.08866]
[1743248626461,23.7458,1838.1,1838.0,1.08866]
[1743248626661,11.0824,1838.1,1838.0,1.08866]
[1743248627568,0.00815372,1838.2,1838.1,1.0886]
[1743248627877,0.00815372,1838.2,1838.1,12.2372]
[1743248628065,0.00815372,1838.2,1838.1,19.37375975]
[1743248628364,0.00815372,1838.2,1838.1,22.58155975]
[1743248629363,0.00815372,1838.2,1838.1,19.37375975]
[1743248631668,0.00815372,1838.2,1838.1,22.58155975]
[1743248634661,8.6833,1838.8,1838.6,1.08825]
[1743248634864,10.8664,1838.7,1838.5,1.08833]
[1743248635670,3.2078,1838.6,1838.3,1.08844]
[1743248635870,10.8185,1838.5,1838.4,0.00815372]
[1743248636258,10.8185,1838.5,1838.4,1.09657372]
[1743248636469,10.8185,1838.5,1838.4,0.00815372]
[1743248636774,10.8185,1838.5,1838.4,1.09657372]
[1743248637279,10.8185,1838.5,1838.4,0.00815372]
[1743248637963,10.8185,1838.5,1838.1,1.08857]
[1743248638177,3.2078,1838.4,1838.2,1.08853]
[1743248638360,10.8185,1838.3,1838.2,1.08853]
[1743248638561,10.8185,1838.3,1838.2,1.08854]
[1743248639274,1.08854,1838.2,1837.7,1.08879]
[1743248639475,3.2078,1838.0,1837.3,8.0488]
[1743248639662,11.1373,1837.9,1837.8,8.17462493]
[1743248640166,11.1373,1837.9,1837.8,1.08878]
[1743248640761,11.1373,1837.9,1837.8,8.07238295]
[1743248640965,11.1373,1837.9,1837.8,19.78158295]
[1743248641474,11.1373,1837.9,1837.8,8.07238295]
[1743248642878,11.1373,1837.9,1837.8,18.87128295]
[1743248643371,11.1373,1837.9,1837.8,8.07238295]
[1743248643565,11.1373,1837.9,1837.8,18.87128295]
[1743248646775,11.1373,1837.9,1837.8,23.70928295]
[1743248647678,11.1373,1837.9,1837.8,12.91038295]
[1743248649580,0.00815372,1838.0,1837.9,1.08872]
[1743248649877,11.37085372,1838.0,1837.9,1.08872]
[1743248650074,3.2078,1838.4,1838.3,1.08848]
[1743248650274,3.2078,1838.7,1838.6,1.0883]
[1743248650782,10.2878,1838.7,1838.5,1.08832]
[1743248651181,10.2878,1838.7,1838.6,1.0883]
[1743248651680,10.2878,1838.7,1838.5,1.08832]
[1743248651883,10.2878,1838.7,1838.6,1.0883]
[1743248652175,10.2878,1838.7,1838.5,1.08832]
[1743248652369,10.2878,1838.7,1838.5,1.08836]
[1743248652575,11.5403,1838.6,1838.4,0.00815372]
[1743248652776,3.2078,1838.5,1838.4,0.00815372]
[1743248652979,3.2078,1838.5,1838.1,3.2078]
[1743248652980,3.2078,1838.5,1838.3,1.08848]
[1743248653178,11.5403,1838.4,1838.2,1.08848]
[1743248653383,11.5403,1838.4,1838.1,3.2078]
[1743248653384,11.5403,1838.4,1838.3,1.08848]
[1743248653678,11.5403,1838.4,1838.2,1.0885]
[1743248653875,5.6535,1838.3,1838.2,1.0885]
[1743248654877,5.6535,1838.3,1838.1,4.30452372]
[1743248655082,11.8269,1838.2,1838.1,1.09672372]
[1743248656180,18.6343,1838.2,1838.1,1.09672372]
[1743248657279,18.6343,1838.2,1838.1,0.00815372]
[1743248657482,18.6343,1838.2,1838.1,1.09675372]
[1743248657671,18.6343,1838.2,1838.1,0.00815372]
[1743248657872,18.6343,1838.2,1837.9,3.2078]
[1743248658483,18.6343,1838.2,1837.9,4.29651]
[1743248658683,19.72285,1838.2,1837.9,4.29651]
[1743248658883,3.2078,1838.0,1837.4,0.5448]
[1743248659182,12.81794,1837.9,1837.6,1.08888]
[1743248659479,3.2078,1837.7,1837.6,1.08888]
[1743248659682,3.2078,1837.7,1837.5,0.00543584]
[1743248659873,11.7292,1837.6,1837.5,0.00543584]
[1743248660277,11.7292,1837.6,1837.2,4.832]
[1743248660477,3.2078,1837.4,1837.3,1.08907]
[1743248660877,4.29685,1837.4,1837.0,1.08921]
[1743248661181,11.4884,1837.3,1837.1,1.08919]
[1743248661379,3.2078,1837.2,1837.0,8.16554833]
[1743248661585,3.2078,1837.2,1836.9,10.8975]
[1743248661785,3.2078,1837.0,1836.9,1.08931]
[1743248662681,3.2078,1837.0,1836.7,61.1785]
[1743248662888,3.2078,1836.8,1836.5,1.08952]
[1743248663089,11.6905,1837.3,1836.6,1.08949]
[1743248663090,7.0129,1836.7,1836.6,1.08949]
[1743248663283,3.2078,1836.9,1836.8,1.08937]
[1743248663879,3.2078,1836.9,1836.6,1.08945]
[1743248664185,3.2078,1836.7,1836.5,7.02714301]
[1743248664481,3.2078,1836.7,1836.5,1.08953]
[1743248664674,3.2078,1836.7,1836.4,1.08956]
[1743248664992,3.2078,1836.5,1836.3,1.08965]
[1743248665773,3.2078,1836.5,1836.3,1.08964]
[1743248665974,3.2078,1836.5,1836.1,11.901]
[1743248666180,3.2078,1836.3,1836.2,1.08969]
[1743248666384,10.2207,1836.6,1836.2,1.08969]
[1743248666575,7.0129,1836.6,1836.3,11.1647]
[1743248666780,3.2078,1836.4,1836.3,11.1647]
[1743248666982,3.2078,1836.4,1836.3,12.25436]
[1743248667180,3.2078,1836.4,1836.3,11.1647]
[1743248667484,3.2078,1836.4,1836.2,1.0897]
[1743248667686,3.2078,1836.4,1836.1,12.25444]
[1743248667886,3.2078,1836.4,1836.1,18.25554397]
[1743248668089,3.2078,1836.4,1836.2,1.08972]
[1743248668288,3.2078,1836.4,1836.2,11.1647]
[1743248668587,3.2078,1836.4,1835.6,1.09004]
[1743248668883,3.2078,1836.2,1835.9,1.0899]
[1743248669093,3.2078,1836.2,1835.9,11.1647]
[1743248669293,3.2078,1836.2,1836.1,1.08978]
[1743248669787,3.2078,1836.2,1835.9,11.1647]
[1743248669985,3.2078,1836.2,1836.1,1.08978]
[1743248670291,3.2078,1836.2,1836.0,8.14022867]
[1743248670495,3.2078,1836.2,1836.0,1.08981]
[1743248671290,3.2078,1836.2,1836.0,1.08982]
[1743248671493,3.2078,1836.2,1836.1,1.08978]
[1743248671691,3.2078,1836.2,1835.7,14.9495]
[1743248671991,3.2078,1836.2,1836.0,1.08982]
[1743248672191,3.2078,1836.2,1836.1,1.08978]
[1743248672396,3.2078,1836.2,1836.1,8.09414796]
[1743248673087,3.2078,1836.2,1836.1,19.34934796]
[1743248673485,3.2078,1836.4,1836.2,1.08969]
[1743248673688,3.2078,1836.4,1836.3,1.08966]
[1743248673986,3.2078,1836.4,1836.3,7.09138565]
[1743248674189,3.2078,1836.4,1836.3,1.08966]
[1743248675493,3.2078,1836.4,1834.8,18.361]
[1743248675494,2.72447,1836.1,1834.8,18.361]
[1743248675688,3.2078,1835.3,1834.8,23.7653]
[1743248675883,3.2078,1835.3,1835.0,1.09041]
[1743248676289,3.2078,1835.3,1834.9,11.4023]
[1743248676595,3.2078,1835.1,1835.0,1.09041]
[1743248676893,3.2078,1835.1,1834.9,12.49276]
[1743248677093,3.2078,1835.1,1835.0,1.09044]
[1743248677287,3.2078,1835.3,1835.2,1.09032]
[1743248677490,14.6787,1835.4,1835.3,1.09026]
[1743248677696,14.6787,1835.4,1835.2,1.09027]
[1743248677891,14.6787,1835.4,1835.2,1.09032]
[1743248678094,14.6787,1835.4,1835.1,4.827]
[1743248678400,14.6787,1835.4,1834.9,1.09048]
[1743248678592,14.6787,1835.4,1834.8,17.3759]
[1743248678791,3.2078,1835.2,1835.0,8.0779061]
[1743248679091,3.2078,1835.2,1835.1,1.09038]
[1743248679291,3.2078,1835.2,1835.0,8.0778661]
[1743248679493,3.2078,1835.2,1835.0,1.09039]
[1743248679792,3.2078,1835.2,1835.1,8.23278097]
[1743248680197,14.6787,1835.4,1835.0,1.09039]
[1743248680495,3.2078,1835.2,1834.9,8.2104424]
[1743248680698,11.1956,1835.1,1834.9,11.9469624]
[1743248680894,11.1956,1835.1,1835.0,1.09044]
[1743248681198,3.2078,1835.2,1835.1,1.09038]
[1743248681899,3.2078,1835.2,1835.0,1.09038]
[1743248682099,3.2078,1835.2,1835.1,1.09038]
[1743248683095,11.1956,1835.4,1835.2,1.09026]
[1743248683096,14.4034,1835.4,1835.2,1.09026]
[1743248683399,14.4034,1835.4,1835.2,1.09027]
[1743248683597,14.4034,1835.4,1835.3,8.21296796]
[1743248684100,14.4034,1835.4,1835.1,1.09036]
[1743248684395,14.4034,1835.4,1835.2,6.9571781]
[1743248684593,14.4034,1835.4,1835.2,8.0474981]
[1743248684792,14.4034,1835.4,1835.2,1.09032]
[1743248685202,14.4034,1835.4,1834.9,7.55321]
[1743248685492,14.4034,1835.4,1835.2,1.09027]
[1743248685697,14.4034,1835.4,1835.1,1.09036]
[1743248685902,3.2078,1835.2,1835.1,1.09036]
[1743248686194,3.2078,1835.2,1835.1,1.09038]
[1743248686598,3.2078,1835.2,1834.7,3.2078]
[1743248686790,11.6933,1835.1,1834.9,1.0905]
[1743248686997,18.5052,1835.1,1835.0,1.09044]
[1743248687195,11.6933,1835.1,1834.9,1.09046]
[1743248687399,11.6933,1835.1,1834.9,1.09047]
[1743248687795,3.2078,1835.0,1834.6,4.825]
[1743248688300,3.2078,1835.0,1834.9,1.0905]
[1743248688994,3.2078,1835.0,1834.5,16.314]
[1743248689195,10.0197,1835.0,1834.8,1.09054]
[1743248689504,10.0197,1835.0,1834.9,1.0905]
[1743248689901,3.2078,1835.0,1834.9,8.18870719]
[1743248690104,3.2078,1835.2,1835.1,1.09036]
[1743248690398,6.843,1835.4,1834.9,9.6942665]
[1743248690399,10.0508,1835.4,1834.9,9.6942665]
[1743248690600,6.843,1835.4,1835.3,1.09026]
[1743248690997,6.843,1835.4,1835.2,1.09026]
[1743248691303,10.0508,1835.4,1835.1,6.9680165]
[1743248691690,10.0508,1835.4,1835.2,1.09028]
[1743248692203,10.0508,1835.4,1835.3,1.09026]
[1743248692495,10.0508,1835.4,1835.1,6.96243274]
[1743248692695,3.2078,1835.2,1835.1,6.96243274]
[1743248692900,3.2078,1835.2,1834.9,4.824]
[1743248693097,10.0508,1835.4,1835.1,1.09038]
[1743248693296,10.0508,1835.4,1835.0,6.96243274]
[1743248693599,10.0508,1835.4,1835.2,1.09029]
[1743248693996,10.0508,1835.4,1835.2,1.09028]
[1743248694803,10.0508,1835.4,1834.9,10.75801]
[1743248695202,10.0508,1835.4,1835.3,1.09026]
[1743248695802,5.51,1835.5,1835.3,1.09021]
[1743248696000,3.21595372,1835.6,1835.5,1.09014]
[1743248696196,3.21595372,1835.6,1835.4,1.09017]
[1743248696600,3.21595372,1835.6,1835.3,4.821]
[1743248696801,4.30606372,1835.6,1835.3,4.821]
[1743248697001,4.30606372,1835.6,1835.2,1.09032]
[1743248697201,3.2078,1835.3,1835.0,1.09042]
[1743248697500,6.8225,1835.2,1835.1,1.09038]
[1743248698895,6.8225,1835.2,1835.0,11.0503]
[1743248699293,6.8225,1835.2,1835.1,6.95789856]
[1743248699705,6.8225,1835.2,1835.1,8.04827856]
[1743248699894,6.8225,1835.2,1835.1,6.95789856]
[1743248700294,3.2078,1835.3,1835.2,1.09032]
[1743248700499,3.2078,1835.3,1835.2,17.59712]
[1743248700800,3.2078,1835.3,1835.2,24.52012735]
[1743248702105,8.7189,1835.5,1835.3,1.09024]
[1743248702506,8.7189,1835.5,1835.2,16.5068]
[1743248702800,8.7189,1835.5,1835.2,17.59709]
[1743248702999,8.7189,1835.5,1835.3,8.20684175]
[1743248703611,0.00815372,1835.6,1835.3,9.61659175]
[1743248703809,5.936,1837.1,1835.3,9.61659175]
[1743248703810,15.5494,1836.2,1835.6,2.72517]
[1743248704002,15.5494,1836.2,1836.0,1.08981]
[1743248704315,15.5494,1836.2,1835.7,19.11167146]
[1743248704601,3.2078,1835.8,1835.4,4.817]
[1743248704805,12.3416,1835.7,1835.5,1.09014]
[1743248705000,12.3416,1835.7,1835.5,8.29811934]
[1743248705195,12.3416,1835.7,1835.5,7.20801934]
[1743248705405,15.5494,1835.7,1835.5,7.20801934]
[1743248705808,15.5494,1835.7,1835.4,5.91531372]